[Event "Titled Tuesday Blitz June 14 Late 2022"]
[White "Janaszak, Dawid"]
[Black "Thiel, Thomas"]
[WhiteFideId "1119206"]
[BlackFideId "4615964"]
[WhiteElo "2199"]
[BlackElo "2276"]
[Result "1-0"]
[Round "01"]
[TimeControl "180+1"]
[Date "2022.06.15"]
[WhiteClock "0:00:19"]
[BlackClock "0:00:15"]

1. e4 {[%clk 0:03:00]}  d5 {[%clk 0:02:59]} 2. exd5 {[%clk 0:02:57]}  Nf6 {[%clk 0:02:57]} 3. Bb5+ {[%clk 0:02:57]}  Nbd7 {[%clk 0:02:54]} 4. c4 {[%clk 0:02:51]}  a6 {[%clk 0:02:54]} 5. Ba4 {[%clk 0:02:44]}  b5 {[%clk 0:02:52]} 6. cxb5 {[%clk 0:02:41]}  Nxd5 {[%clk 0:02:52]} 7. Nc3 {[%clk 0:02:37]}  N5b6 {[%clk 0:02:52]} 8. Nf3 {[%clk 0:02:30]}  Nxa4 {[%clk 0:02:48]} 9. Qxa4 {[%clk 0:02:30]}  Nb6 {[%clk 0:02:47]} 10. Qe4 {[%clk 0:02:23]}  e6 {[%clk 0:02:36]} 11. O-O {[%clk 0:02:20]}  Bd6 {[%clk 0:02:31]} 12. d4 {[%clk 0:02:17]}  O-O {[%clk 0:02:29]} 13. Bg5 {[%clk 0:02:16]}  f6 {[%clk 0:02:27]} 14. Bf4 {[%clk 0:02:06]}  axb5 {[%clk 0:02:12]} 15. Nxb5 {[%clk 0:02:04]}  Bxf4 {[%clk 0:02:02]} 16. Qxf4 {[%clk 0:02:03]}  Nd5 {[%clk 0:02:02]} 17. Qe4 {[%clk 0:02:00]}  Re8 {[%clk 0:01:55]} 18. Rfc1 {[%clk 0:01:48]}  Ba6 {[%clk 0:01:54]} 19. Nc3 {[%clk 0:01:45]}  Bb7 {[%clk 0:01:52]} 20. Nxd5 {[%clk 0:01:21]}  Bxd5 {[%clk 0:01:53]} 21. Qf4 {[%clk 0:01:18]}  c6 {[%clk 0:01:41]} 22. a4 {[%clk 0:01:15]}  Qb6 {[%clk 0:01:36]} 23. Qd2 {[%clk 0:00:53]}  Reb8 {[%clk 0:01:33]} 24. Rc2 {[%clk 0:00:45]}  Qb4 {[%clk 0:01:30]} 25. Qxb4 {[%clk 0:00:37]}  Rxb4 {[%clk 0:01:31]} 26. a5 {[%clk 0:00:38]}  Rb5 {[%clk 0:01:29]} 27. a6 {[%clk 0:00:37]}  Rb6 {[%clk 0:01:28]} 28. a7 {[%clk 0:00:32]}  Rb7 {[%clk 0:01:28]} 29. Nd2 {[%clk 0:00:26]}  Raxa7 {[%clk 0:01:26]} 30. Rxa7 {[%clk 0:00:27]}  Rxa7 {[%clk 0:01:25]} 31. f3 {[%clk 0:00:27]}  Ra4 {[%clk 0:01:18]} 32. Ne4 {[%clk 0:00:24]}  Rxd4 {[%clk 0:01:16]} 33. Nc5 {[%clk 0:00:24]}  Kf7 {[%clk 0:01:04]} 34. Kf2 {[%clk 0:00:23]}  Rc4 {[%clk 0:01:03]} 35. Rxc4 {[%clk 0:00:22]}  Bxc4 {[%clk 0:01:04]} 36. f4 {[%clk 0:00:22]}  Bd5 {[%clk 0:01:04]} 37. g3 {[%clk 0:00:22]}  Ke7 {[%clk 0:01:03]} 38. Ke3 {[%clk 0:00:23]}  Kd6 {[%clk 0:01:03]} 39. Nb7+ {[%clk 0:00:23]}  Kc7 {[%clk 0:01:02]} 40. Nc5 {[%clk 0:00:24]}  Kb6 {[%clk 0:01:02]} 41. Nd3 {[%clk 0:00:24]}  c5 {[%clk 0:00:59]} 42. g4 {[%clk 0:00:22]}  c4 {[%clk 0:00:57]} 43. Ne1 {[%clk 0:00:20]}  Kc5 {[%clk 0:00:56]} 44. Nc2 {[%clk 0:00:21]}  Bc6 {[%clk 0:00:44]} 45. h4 {[%clk 0:00:21]}  e5 {[%clk 0:00:43]} 46. g5 {[%clk 0:00:20]}  Ba4 {[%clk 0:00:41]} 47. Ne1 {[%clk 0:00:19]}  Kb4 {[%clk 0:00:40]} 48. fxe5 {[%clk 0:00:18]}  fxe5 {[%clk 0:00:39]} 49. Nf3 {[%clk 0:00:18]}  Kb3 {[%clk 0:00:36]} 50. Nxe5 {[%clk 0:00:19]}  Bb5 {[%clk 0:00:35]} 51. Kd4 {[%clk 0:00:17]}  Kxb2 {[%clk 0:00:23]} 52. Nxc4+ {[%clk 0:00:17]}  Bxc4 {[%clk 0:00:20]} 53. Kxc4 {[%clk 0:00:18]}  Kc2 {[%clk 0:00:19]} 54. Kd5 {[%clk 0:00:19]}  Kd3 {[%clk 0:00:19]} 55. Ke6 {[%clk 0:00:18]}  Ke4 {[%clk 0:00:18]} 56. Kf7 {[%clk 0:00:19]}  g6 {[%clk 0:00:15]} 57. Kg7 {[%clk 0:00:19]}  Kf5 {[%clk 0:00:15]} 58. Kxh7 {[%clk 0:00:19]} 1-0


[Site "https://www.chess.com"]

[Event "Titled Tuesday Blitz June 14 Late 2022"]
[White "Janturin, Artur"]
[Black "Korchmar, Vasiliy"]
[WhiteFideId "4130022"]
[BlackFideId "24131750"]
[WhiteElo "2401"]
[BlackElo "2370"]
[Result "0-1"]
[Round "01"]
[TimeControl "180+1"]
[Date "2022.06.15"]
[WhiteClock "0:00:03"]
[BlackClock "0:00:03"]

1. b3 {[%clk 0:02:59]}  d5 {[%clk 0:02:57]} 2. Bb2 {[%clk 0:03:00]}  Bg4 {[%clk 0:02:52]} 3. f3 {[%clk 0:02:59]}  Bf5 {[%clk 0:02:48]} 4. e4 {[%clk 0:02:39]}  dxe4 {[%clk 0:02:44]} 5. Qe2 {[%clk 0:02:39]}  Nf6 {[%clk 0:02:27]} 6. Qb5+ {[%clk 0:02:17]}  Bd7 {[%clk 0:02:25]} 7. Qxb7 {[%clk 0:02:16]}  Nc6 {[%clk 0:02:11]} 8. Bxf6 {[%clk 0:01:44]}  exf6 {[%clk 0:02:09]} 9. fxe4 {[%clk 0:01:45]}  Nb4 {[%clk 0:01:37]} 10. Bd3 {[%clk 0:01:09]}  Bc5 {[%clk 0:01:37]} 11. a3 {[%clk 0:00:39]}  Nxd3+ {[%clk 0:01:22]} 12. cxd3 {[%clk 0:00:39]}  O-O {[%clk 0:01:11]} 13. Nf3 {[%clk 0:00:33]}  Rb8 {[%clk 0:00:57]} 14. Qd5 {[%clk 0:00:33]}  Qe7 {[%clk 0:00:57]} 15. b4 {[%clk 0:00:31]}  Bb6 {[%clk 0:00:55]} 16. Nc3 {[%clk 0:00:30]}  Be6 {[%clk 0:00:48]} 17. Qc6 {[%clk 0:00:21]}  Rfd8 {[%clk 0:00:48]} 18. Ke2 {[%clk 0:00:10]}  Bd7 {[%clk 0:00:44]} 19. Nd5 {[%clk 0:00:09]}  Qe8 {[%clk 0:00:36]} 20. Qc3 {[%clk 0:00:08]}  Bg4 {[%clk 0:00:36]} 21. h3 {[%clk 0:00:06]}  Bh5 {[%clk 0:00:36]} 22. g4 {[%clk 0:00:06]}  Bg6 {[%clk 0:00:37]} 23. Qc4 {[%clk 0:00:05]}  Rd6 {[%clk 0:00:34]} 24. Nf4 {[%clk 0:00:05]}  Rbd8 {[%clk 0:00:33]} 25. Rac1 {[%clk 0:00:05]}  Qa4 {[%clk 0:00:20]} 26. Rc3 {[%clk 0:00:05]}  a5 {[%clk 0:00:19]} 27. h4 {[%clk 0:00:05]}  h6 {[%clk 0:00:18]} 28. g5 {[%clk 0:00:04]}  Kh7 {[%clk 0:00:13]} 29. h5 {[%clk 0:00:04]}  fxg5 {[%clk 0:00:05]} 30. hxg6+ {[%clk 0:00:03]}  fxg6 {[%clk 0:00:06]} 31. Nxg5+ {[%clk 0:00:03]}  Kh8 {[%clk 0:00:06]} 32. Nf7+ {[%clk 0:00:04]}  Kh7 {[%clk 0:00:07]} 33. Nxd8 {[%clk 0:00:02]}  Rxd8 {[%clk 0:00:07]} 34. Qf7 {[%clk 0:00:02]}  Rd6 {[%clk 0:00:05]} 35. Qe8 {[%clk 0:00:02]}  Qxe8 {[%clk 0:00:05]} 36. Rc4 {[%clk 0:00:02]}  axb4 {[%clk 0:00:05]} 37. Nh3 {[%clk 0:00:02]}  bxa3 {[%clk 0:00:04]} 38. Ng5+ {[%clk 0:00:02]}  Kg8 {[%clk 0:00:05]} 39. Nf3 {[%clk 0:00:03]}  a2 {[%clk 0:00:05]} 40. Ra1 {[%clk 0:00:03]}  Qa8 {[%clk 0:00:04]} 41. Rc2 {[%clk 0:00:03]}  Qa6 {[%clk 0:00:04]} 42. Ne1 {[%clk 0:00:02]}  Qa5 {[%clk 0:00:02]} 43. Rcxa2 {[%clk 0:00:03]}  Qh5+ {[%clk 0:00:03]} 44. Nf3 {[%clk 0:00:02]}  Bd4 {[%clk 0:00:04]} 45. Ra8+ {[%clk 0:00:02]}  Kh7 {[%clk 0:00:04]} 46. R1a5 {[%clk 0:00:03]}  Qg4 {[%clk 0:00:02]} 47. Re8 {[%clk 0:00:03]}  Rf6 {[%clk 0:00:02]} 48. Raa8 {[%clk 0:00:02]}  Qxf3+ {[%clk 0:00:03]} 49. Ke1 {[%clk 0:00:03]}  Qf1# {[%clk 0:00:03]} 0-1


[Site "https://www.chess.com"]

[Event "Titled Tuesday Blitz June 14 Late 2022"]
[White "Jian, Alex"]
[Black "Shimanov, Aleksandr"]
[WhiteFideId "30901022"]
[BlackFideId "4198603"]
[WhiteElo "2111"]
[BlackElo "2605"]
[Result "0-1"]
[Round "01"]
[TimeControl "180+1"]
[Date "2022.06.14"]
[WhiteClock "0:00:03"]
[BlackClock "0:00:10"]

1. Nf3 {[%clk 0:02:59]}  g6 {[%clk 0:02:46]} 2. d4 {[%clk 0:02:56]}  Nf6 {[%clk 0:02:45]} 3. c4 {[%clk 0:02:55]}  Bg7 {[%clk 0:02:44]} 4. Nc3 {[%clk 0:02:55]}  O-O {[%clk 0:02:45]} 5. e4 {[%clk 0:02:55]}  d6 {[%clk 0:02:45]} 6. Be2 {[%clk 0:02:55]}  Na6 {[%clk 0:02:39]} 7. Be3 {[%clk 0:02:54]}  e5 {[%clk 0:02:37]} 8. d5 {[%clk 0:02:54]}  Ng4 {[%clk 0:02:37]} 9. Bg5 {[%clk 0:02:53]}  f6 {[%clk 0:02:37]} 10. Bh4 {[%clk 0:02:53]}  h5 {[%clk 0:02:36]} 11. Nd2 {[%clk 0:02:52]}  c5 {[%clk 0:02:28]} 12. O-O {[%clk 0:02:46]}  Nh6 {[%clk 0:02:27]} 13. f3 {[%clk 0:02:44]}  Nf7 {[%clk 0:02:27]} 14. a3 {[%clk 0:02:35]}  Bh6 {[%clk 0:02:17]} 15. Bf2 {[%clk 0:02:35]}  Bd7 {[%clk 0:01:56]} 16. b4 {[%clk 0:02:31]}  b6 {[%clk 0:01:44]} 17. Rb1 {[%clk 0:02:25]}  Qe7 {[%clk 0:01:43]} 18. Qc2 {[%clk 0:02:01]}  Kg7 {[%clk 0:01:39]} 19. bxc5 {[%clk 0:01:57]}  dxc5 {[%clk 0:01:34]} 20. Rfd1 {[%clk 0:01:42]}  Nd6 {[%clk 0:01:33]} 21. a4 {[%clk 0:01:25]}  Nb4 {[%clk 0:01:32]} 22. Qb2 {[%clk 0:01:20]}  a5 {[%clk 0:01:31]} 23. Nb5 {[%clk 0:01:08]}  Rac8 {[%clk 0:01:21]} 24. Nf1 {[%clk 0:00:58]}  Kh7 {[%clk 0:01:17]} 25. Bg3 {[%clk 0:00:45]}  Bg5 {[%clk 0:01:15]} 26. Qc3 {[%clk 0:00:39]}  Bxb5 {[%clk 0:01:02]} 27. axb5 {[%clk 0:00:35]}  Rce8 {[%clk 0:00:58]} 28. Bf2 {[%clk 0:00:28]}  f5 {[%clk 0:00:53]} 29. Bd3 {[%clk 0:00:27]}  h4 {[%clk 0:00:44]} 30. h3 {[%clk 0:00:19]}  Bf4 {[%clk 0:00:42]} 31. Rb2 {[%clk 0:00:18]}  Qg5 {[%clk 0:00:42]} 32. Kh1 {[%clk 0:00:16]}  fxe4 {[%clk 0:00:39]} 33. Bxe4 {[%clk 0:00:13]}  Ra8 {[%clk 0:00:29]} 34. Ra1 {[%clk 0:00:10]}  Rf7 {[%clk 0:00:23]} 35. Rbb1 {[%clk 0:00:10]}  Raf8 {[%clk 0:00:23]} 36. Qe1 {[%clk 0:00:08]}  Nxe4 {[%clk 0:00:20]} 37. Qxe4 {[%clk 0:00:05]}  Bg3 {[%clk 0:00:20]} 38. Nxg3 {[%clk 0:00:05]}  hxg3 {[%clk 0:00:21]} 39. Be3 {[%clk 0:00:05]}  Qf5 {[%clk 0:00:18]} 40. Re1 {[%clk 0:00:03]}  Qxe4 {[%clk 0:00:15]} 41. fxe4 {[%clk 0:00:04]}  Nc2 {[%clk 0:00:15]} 42. Kg1 {[%clk 0:00:02]}  Rf2 {[%clk 0:00:10]} 43. Rac1 {[%clk 0:00:01]}  Nxe1 {[%clk 0:00:10]} 44. Rxe1 {[%clk 0:00:01]}  Rc2 {[%clk 0:00:10]} 45. Bg5 {[%clk 0:00:01]}  Rf7 {[%clk 0:00:10]} 46. Bh4 {[%clk 0:00:01]}  Rxc4 {[%clk 0:00:10]} 47. Bxg3 {[%clk 0:00:01]}  Re7 {[%clk 0:00:10]} 48. d6 {[%clk 0:00:01]}  Re6 {[%clk 0:00:10]} 49. Bxe5 {[%clk 0:00:02]}  Rxe5 {[%clk 0:00:10]} 50. d7 {[%clk 0:00:03]}  Rd4 {[%clk 0:00:10]} 51. Rf1 {[%clk 0:00:03]}  Rxd7 {[%clk 0:00:10]} 0-1


[Site "https://www.chess.com"]

[Event "Titled Tuesday Blitz June 14 Late 2022"]
[White "Koc, Przemyslaw"]
[Black "Sjugirov, Sanan"]
[WhiteFideId "1109081"]
[BlackFideId "4189302"]
[WhiteElo "2134"]
[BlackElo "2602"]
[Result "0-1"]
[Round "01"]
[TimeControl "180+1"]
[Date "2022.06.14"]
[WhiteClock "0:00:18"]
[BlackClock "0:00:03"]

1. d4 {[%clk 0:03:00]}  Nf6 {[%clk 0:02:59]} 2. Bg5 {[%clk 0:03:00]}  d5 {[%clk 0:02:59]} 3. Nd2 {[%clk 0:02:59]}  c6 {[%clk 0:02:49]} 4. e3 {[%clk 0:02:58]}  g6 {[%clk 0:02:44]} 5. Ngf3 {[%clk 0:02:55]}  Bg7 {[%clk 0:02:44]} 6. Bd3 {[%clk 0:02:55]}  Bg4 {[%clk 0:02:30]} 7. h3 {[%clk 0:02:52]}  Bxf3 {[%clk 0:02:23]} 8. Qxf3 {[%clk 0:02:49]}  Nbd7 {[%clk 0:02:22]} 9. e4 {[%clk 0:02:30]}  dxe4 {[%clk 0:02:21]} 10. Nxe4 {[%clk 0:02:30]}  Nxe4 {[%clk 0:02:15]} 11. Qxe4 {[%clk 0:02:30]}  Nf6 {[%clk 0:01:51]} 12. Bxf6 {[%clk 0:02:29]}  Bxf6 {[%clk 0:01:52]} 13. c3 {[%clk 0:02:26]}  O-O {[%clk 0:01:52]} 14. O-O {[%clk 0:02:25]}  a5 {[%clk 0:01:46]} 15. Rad1 {[%clk 0:02:20]}  e6 {[%clk 0:01:45]} 16. a4 {[%clk 0:02:13]}  Bg7 {[%clk 0:01:44]} 17. Rfe1 {[%clk 0:02:08]}  Qb6 {[%clk 0:01:44]} 18. Qe2 {[%clk 0:02:02]}  Rad8 {[%clk 0:01:44]} 19. Be4 {[%clk 0:01:59]}  Rd7 {[%clk 0:01:44]} 20. Rb1 {[%clk 0:01:54]}  Rfd8 {[%clk 0:01:44]} 21. b4 {[%clk 0:01:52]}  axb4 {[%clk 0:01:42]} 22. Rxb4 {[%clk 0:01:52]}  Qa7 {[%clk 0:01:40]} 23. Reb1 {[%clk 0:01:51]}  e5 {[%clk 0:01:31]} 24. dxe5 {[%clk 0:01:30]}  Bxe5 {[%clk 0:01:31]} 25. Bxg6 {[%clk 0:01:19]}  hxg6 {[%clk 0:00:41]} 26. Qxe5 {[%clk 0:01:15]}  Rd1+ {[%clk 0:00:41]} 27. Rxd1 {[%clk 0:01:11]}  Rxd1+ {[%clk 0:00:42]} 28. Kh2 {[%clk 0:01:11]}  Qxf2 {[%clk 0:00:42]} 29. Rf4 {[%clk 0:00:58]}  Qg1+ {[%clk 0:00:34]} 30. Kg3 {[%clk 0:00:59]}  Rd3+ {[%clk 0:00:20]} 31. Kh4 {[%clk 0:00:56]}  Re3 {[%clk 0:00:15]} 32. Qf6 {[%clk 0:00:37]}  Qe1+ {[%clk 0:00:12]} 33. Rf2 {[%clk 0:00:32]}  Re4+ {[%clk 0:00:07]} 34. g4 {[%clk 0:00:30]}  Re7 {[%clk 0:00:04]} 35. Kg5 {[%clk 0:00:24]}  Qe3+ {[%clk 0:00:04]} 36. Qf4 {[%clk 0:00:20]}  Re5+ {[%clk 0:00:03]} 37. Kh6 {[%clk 0:00:18]}  Qxh3# {[%clk 0:00:03]} 0-1


[Site "https://www.chess.com"]

[Event "Titled Tuesday Blitz June 14 Late 2022"]
[White "Kosakowski, Jakub"]
[Black "Peatman, Carter"]
[WhiteFideId "1185080"]
[BlackFideId "2096480"]
[WhiteElo "2476"]
[BlackElo "2476"]
[Result "1-0"]
[Round "01"]
[TimeControl "180+1"]
[Date "2022.06.14"]
[WhiteClock "0:00:46"]
[BlackClock "0:00:07"]

1. d4 {[%clk 0:02:55]}  d5 {[%clk 0:02:55]} 2. c4 {[%clk 0:02:55]}  e6 {[%clk 0:02:52]} 3. Nf3 {[%clk 0:02:55]}  Nf6 {[%clk 0:02:50]} 4. Qc2 {[%clk 0:02:55]}  Be7 {[%clk 0:02:34]} 5. g3 {[%clk 0:02:49]}  Bd7 {[%clk 0:02:32]} 6. cxd5 {[%clk 0:02:35]}  exd5 {[%clk 0:02:30]} 7. Bg2 {[%clk 0:02:35]}  c6 {[%clk 0:02:30]} 8. O-O {[%clk 0:02:34]}  O-O {[%clk 0:02:30]} 9. Nc3 {[%clk 0:02:34]}  Qc8 {[%clk 0:02:26]} 10. Bg5 {[%clk 0:02:23]}  Bf5 {[%clk 0:02:24]} 11. Qa4 {[%clk 0:02:08]}  Bh3 {[%clk 0:02:22]} 12. Bxf6 {[%clk 0:02:06]}  Bxf6 {[%clk 0:02:21]} 13. Rfc1 {[%clk 0:02:06]}  Bxg2 {[%clk 0:02:19]} 14. Kxg2 {[%clk 0:02:06]}  Qe6 {[%clk 0:02:15]} 15. b4 {[%clk 0:02:04]}  a6 {[%clk 0:02:09]} 16. Qb3 {[%clk 0:02:01]}  Nd7 {[%clk 0:02:07]} 17. a4 {[%clk 0:02:01]}  b5 {[%clk 0:02:04]} 18. e4 {[%clk 0:01:49]}  Nb6 {[%clk 0:01:55]} 19. exd5 {[%clk 0:01:42]}  Nxd5 {[%clk 0:01:50]} 20. Nxd5 {[%clk 0:01:41]}  cxd5 {[%clk 0:01:50]} 21. axb5 {[%clk 0:01:41]}  axb5 {[%clk 0:01:50]} 22. Rxa8 {[%clk 0:01:40]}  Rxa8 {[%clk 0:01:51]} 23. Rc5 {[%clk 0:01:40]}  Rd8 {[%clk 0:01:48]} 24. Rxb5 {[%clk 0:01:40]}  Qe4 {[%clk 0:01:42]} 25. Rc5 {[%clk 0:01:36]}  Bxd4 {[%clk 0:01:34]} 26. Rc7 {[%clk 0:01:27]}  g5 {[%clk 0:01:18]} 27. h3 {[%clk 0:01:22]}  h5 {[%clk 0:01:17]} 28. Qc2 {[%clk 0:01:14]}  g4 {[%clk 0:00:54]} 29. hxg4 {[%clk 0:01:09]}  hxg4 {[%clk 0:00:46]} 30. Qxe4 {[%clk 0:01:09]}  dxe4 {[%clk 0:00:47]} 31. Ng5 {[%clk 0:01:09]}  e3 {[%clk 0:00:36]} 32. fxe3 {[%clk 0:00:49]}  Bxe3 {[%clk 0:00:37]} 33. Ne4 {[%clk 0:00:49]}  Rd1 {[%clk 0:00:29]} 34. Nf6+ {[%clk 0:00:47]}  Kg7 {[%clk 0:00:26]} 35. Nxg4 {[%clk 0:00:47]}  Bd4 {[%clk 0:00:20]} 36. Rd7 {[%clk 0:00:47]}  Rd2+ {[%clk 0:00:16]} 37. Kf3 {[%clk 0:00:47]}  Rd1 {[%clk 0:00:15]} 38. Ke2 {[%clk 0:00:45]}  Rg1 {[%clk 0:00:11]} 39. Rxd4 {[%clk 0:00:45]}  Rxg3 {[%clk 0:00:12]} 40. Ne3 {[%clk 0:00:45]}  Rh3 {[%clk 0:00:07]} 41. b5 {[%clk 0:00:44]}  Rh2+ {[%clk 0:00:07]} 42. Kd3 {[%clk 0:00:43]}  Rb2 {[%clk 0:00:08]} 43. Kc4 {[%clk 0:00:42]}  Kg6 {[%clk 0:00:07]} 44. Kc5 {[%clk 0:00:42]}  f5 {[%clk 0:00:07]} 45. b6 {[%clk 0:00:42]}  Rb3 {[%clk 0:00:06]} 46. Nd5 {[%clk 0:00:41]}  Kg5 {[%clk 0:00:03]} 47. Rb4 {[%clk 0:00:40]}  Rh3 {[%clk 0:00:02]} 48. b7 {[%clk 0:00:41]}  Rh8 {[%clk 0:00:02]} 49. b8=Q {[%clk 0:00:41]}  Rxb8 {[%clk 0:00:03]} 50. Rxb8 {[%clk 0:00:42]}  f4 {[%clk 0:00:04]} 51. Rg8+ {[%clk 0:00:42]}  Kf5 {[%clk 0:00:04]} 52. Rf8+ {[%clk 0:00:43]}  Ke5 {[%clk 0:00:04]} 53. Rxf4 {[%clk 0:00:43]}  Ke6 {[%clk 0:00:05]} 54. Kd4 {[%clk 0:00:44]}  Kd6 {[%clk 0:00:06]} 55. Rf6+ {[%clk 0:00:44]}  Kd7 {[%clk 0:00:06]} 56. Kc5 {[%clk 0:00:45]}  Ke8 {[%clk 0:00:07]} 57. Kd6 {[%clk 0:00:45]}  Kd8 {[%clk 0:00:07]} 58. Rf8# {[%clk 0:00:46]} 1-0


[Site "https://www.chess.com"]

[Event "Titled Tuesday Blitz June 14 Late 2022"]
[White "Kubatko, Ivan"]
[Black "Steinberg, Nitzan"]
[WhiteFideId "24111473"]
[BlackFideId "2801795"]
[WhiteElo "2285"]
[BlackElo "2471"]
[Result "0-1"]
[Round "01"]
[TimeControl "180+1"]
[Date "2022.06.14"]
[WhiteClock "0:00:04"]
[BlackClock "0:00:36"]

1. e4 {[%clk 0:02:59]}  g6 {[%clk 0:02:57]} 2. d4 {[%clk 0:02:58]}  Bg7 {[%clk 0:02:57]} 3. Nc3 {[%clk 0:02:59]}  d6 {[%clk 0:02:58]} 4. f4 {[%clk 0:02:59]}  a6 {[%clk 0:02:58]} 5. a4 {[%clk 0:02:59]}  Nf6 {[%clk 0:02:55]} 6. e5 {[%clk 0:02:58]}  dxe5 {[%clk 0:02:55]} 7. dxe5 {[%clk 0:02:56]}  Qxd1+ {[%clk 0:02:53]} 8. Kxd1 {[%clk 0:02:57]}  Ng4 {[%clk 0:02:45]} 9. Ke1 {[%clk 0:02:56]}  Be6 {[%clk 0:02:37]} 10. h3 {[%clk 0:02:50]}  Nh6 {[%clk 0:02:37]} 11. g4 {[%clk 0:02:50]}  Nc6 {[%clk 0:02:33]} 12. Be3 {[%clk 0:02:44]}  f6 {[%clk 0:02:30]} 13. exf6 {[%clk 0:02:28]}  exf6 {[%clk 0:02:31]} 14. Nf3 {[%clk 0:02:27]}  O-O-O {[%clk 0:02:25]} 15. Kf2 {[%clk 0:02:21]}  Nf7 {[%clk 0:02:22]} 16. Be2 {[%clk 0:02:05]}  f5 {[%clk 0:02:22]} 17. g5 {[%clk 0:01:58]}  Nd6 {[%clk 0:02:17]} 18. Nd2 {[%clk 0:01:49]}  Rhe8 {[%clk 0:02:09]} 19. Rhe1 {[%clk 0:01:35]}  Nb4 {[%clk 0:02:03]} 20. Rec1 {[%clk 0:01:13]}  Bxc3 {[%clk 0:01:54]} 21. bxc3 {[%clk 0:01:13]}  Nd5 {[%clk 0:01:49]} 22. Bd4 {[%clk 0:01:05]}  Nxf4 {[%clk 0:01:48]} 23. Bf1 {[%clk 0:01:05]}  Bd5 {[%clk 0:01:36]} 24. Bf6 {[%clk 0:00:58]}  Rd7 {[%clk 0:01:35]} 25. Re1 {[%clk 0:00:58]}  Ne4+ {[%clk 0:01:30]} 26. Nxe4 {[%clk 0:00:55]}  Bxe4 {[%clk 0:01:31]} 27. Bd4 {[%clk 0:00:42]}  Ne6 {[%clk 0:01:25]} 28. Bf6 {[%clk 0:00:38]}  Rd2+ {[%clk 0:01:19]} 29. Re2 {[%clk 0:00:38]}  Rxe2+ {[%clk 0:01:16]} 30. Bxe2 {[%clk 0:00:39]}  Bxc2 {[%clk 0:01:15]} 31. Bc4 {[%clk 0:00:37]}  Nc5 {[%clk 0:01:12]} 32. a5 {[%clk 0:00:31]}  Bb3 {[%clk 0:01:05]} 33. Be2 {[%clk 0:00:26]}  Ne4+ {[%clk 0:01:04]} 34. Kf3 {[%clk 0:00:21]}  Nxf6 {[%clk 0:01:05]} 35. gxf6 {[%clk 0:00:21]}  Bd5+ {[%clk 0:00:58]} 36. Kf2 {[%clk 0:00:20]}  Rf8 {[%clk 0:00:59]} 37. Rd1 {[%clk 0:00:15]}  Be6 {[%clk 0:00:58]} 38. Kg3 {[%clk 0:00:11]}  Rxf6 {[%clk 0:00:49]} 39. Kf4 {[%clk 0:00:11]}  Bd7 {[%clk 0:00:49]} 40. Kg5 {[%clk 0:00:07]}  Rc6 {[%clk 0:00:48]} 41. Rd3 {[%clk 0:00:06]}  Rc5 {[%clk 0:00:46]} 42. Kh6 {[%clk 0:00:05]}  Rxa5 {[%clk 0:00:45]} 43. Kxh7 {[%clk 0:00:05]}  g5 {[%clk 0:00:43]} 44. Kg6 {[%clk 0:00:05]}  f4 {[%clk 0:00:41]} 45. Bg4 {[%clk 0:00:05]}  Bxg4 {[%clk 0:00:39]} 46. hxg4 {[%clk 0:00:06]}  Rc5 {[%clk 0:00:38]} 47. Rh3 {[%clk 0:00:05]}  b5 {[%clk 0:00:37]} 48. Kf6 {[%clk 0:00:04]}  a5 {[%clk 0:00:37]} 49. Ke6 {[%clk 0:00:04]}  a4 {[%clk 0:00:36]} 0-1


[Site "https://www.chess.com"]

[Event "Titled Tuesday Blitz June 14 Late 2022"]
[White "Meshkovs, Nikita"]
[Black "Urbina Perez, Juan Antonio"]
[WhiteFideId "11602740"]
[BlackFideId "2217368"]
[WhiteElo "2506"]
[BlackElo "2192"]
[Result "1-0"]
[Round "01"]
[TimeControl "180+1"]
[Date "2022.06.14"]
[WhiteClock "0:01:13"]
[BlackClock "0:01:16"]

1. Nf3 {[%clk 0:03:00]}  d5 {[%clk 0:02:56]} 2. d4 {[%clk 0:02:59]}  Nf6 {[%clk 0:02:54]} 3. c4 {[%clk 0:03:00]}  c6 {[%clk 0:02:55]} 4. Nc3 {[%clk 0:02:59]}  a6 {[%clk 0:02:55]} 5. c5 {[%clk 0:02:56]}  Bf5 {[%clk 0:02:54]} 6. Nh4 {[%clk 0:02:55]}  Be4 {[%clk 0:02:47]} 7. Qb3 {[%clk 0:02:45]}  Ra7 {[%clk 0:02:46]} 8. f3 {[%clk 0:02:32]}  Bg6 {[%clk 0:02:45]} 9. f4 {[%clk 0:02:29]}  Be4 {[%clk 0:02:37]} 10. Nf3 {[%clk 0:02:26]}  e6 {[%clk 0:02:26]} 11. Bd2 {[%clk 0:02:21]}  Nbd7 {[%clk 0:02:25]} 12. Na4 {[%clk 0:02:21]}  Be7 {[%clk 0:02:24]} 13. e3 {[%clk 0:02:18]}  Bxf3 {[%clk 0:02:18]} 14. gxf3 {[%clk 0:02:18]}  Nh5 {[%clk 0:02:17]} 15. O-O-O {[%clk 0:02:17]}  O-O {[%clk 0:02:15]} 16. Kb1 {[%clk 0:01:52]}  b6 {[%clk 0:02:07]} 17. cxb6 {[%clk 0:01:50]}  Rb7 {[%clk 0:02:03]} 18. Bxa6 {[%clk 0:01:49]}  Rb8 {[%clk 0:02:03]} 19. b7 {[%clk 0:01:39]}  c5 {[%clk 0:01:57]} 20. dxc5 {[%clk 0:01:33]}  Nxc5 {[%clk 0:01:58]} 21. Nxc5 {[%clk 0:01:31]}  Bxc5 {[%clk 0:01:59]} 22. Rc1 {[%clk 0:01:21]}  Ba7 {[%clk 0:01:53]} 23. Rc8 {[%clk 0:01:18]}  Qd6 {[%clk 0:01:52]} 24. Qb5 {[%clk 0:01:16]}  Qb6 {[%clk 0:01:23]} 25. Qxb6 {[%clk 0:01:14]}  Bxb6 {[%clk 0:01:24]} 26. Bb4 {[%clk 0:01:14]}  Re8 {[%clk 0:01:16]} 27. Bd6 {[%clk 0:01:13]} 1-0


[Site "https://www.chess.com"]